Cogmind - Beta 11.1 @@@ ROGUE MODE // 2022.12.12 @ 19:17:38 Player: sasha Result: Destroyed by G-47 Trooper with Particle Gun Performance ------------- Evolutions (0) 0 Regions Visited (2) 400 Robots Destroyed (17) 85 Value Destroyed (406) 406 Prototype IDs (0) 0 Alien Tech Used (0) 0 Bonus (0) 0 TOTAL SCORE: 891 Bonus ------- None Cogmind --------- Core Integrity 0/250 Matter 300/300 Energy 100/100 System Corruption 0% Temperature Cool (9) Movement Walking (190) Ox1 Location -10/Mines Parts ------- > --- POWER (1) -------- (None) > --- PROPULSION (2) --- Aluminum Leg > --- UTILITY (2) ------ Large Storage Unit > --- WEAPON (2) ------- (None) > --- INVENTORY (15) --- Aluminum Leg Aluminum Leg High-capacity Matter Pod (106) Peak State ------------ > --- POWER ------------ Ion Engine > --- PROPULSION ------- Light Treads Light Treads > --- UTILITY ---------- Small Storage Unit Large Storage Unit > --- WEAPON ----------- Assault Rifle Assault Rifle > --- INVENTORY -------- Light Ion Engine Aluminum Leg Light Assault Rifle [Rating: 7] Favorites ----------- Power Ion Engine Engine Ion Engine Propulsion Light Treads Treads Light Treads Leg Aluminum Leg Utility Large Storage Unit Device Sensor Array Storage Large Storage Unit Weapon Assault Rifle Ballistic Gun Assault Rifle Build | -11 -10 -10 ------- Run | Scr Mat Min Slots Evolved . | . . . Power . | . . . Propulsion . | . . . Utility . | . . . Weapon . | . . . Parts Attached 13 | 6 4 3 Power 3 | 1 1 1 Engine 3 | 1 1 1 Core . | . . . Reactor . | . . . Propulsion 4 | 2 . 2 Treads 2 | 2 . . Leg 2 | . . 2 Wheel . | . . . Hover . | . . . Flight . | . . . Utility 3 | 1 2 . Device 1 | . 1 . Storage 2 | 1 1 . Processor . | . . . Hackware . | . . . Protection . | . . . Artifact . | . . . Weapon 3 | 2 1 . Energy Gun . | . . . Energy Cannon . | . . . Ballistic Gun 3 | 2 1 . Ballistic Cannon . | . . . Launcher . | . . . Special Weapon . | . . . Impact Weapon . | . . . Slashing Weapon . | . . . Piercing Weapon . | . . . Special Melee Weapon . | . . . Unidentified Prototypes . | . . . Parts Lost 10 | . 2 8 Power 3 | . 1 2 Propulsion 3 | . . 3 Utility 1 | . . 1 Weapon 3 | . 1 2 Highest Loss Streak 5 | . 2 5 To Critical Strikes . | . . . Average Slot Usage (%) 82 | . 86 67 Engine 13 | . 13 11 Treads 23 | . 28 6 Leg 3 | . . 15 Device 2 | . 1 4 Storage 14 | . 14 14 Ballistic Gun 25 | . 28 15 Naked Turns . | . . . Heaviest Build 30 | 14 30 27 Greatest Support 40 | 40 40 40 Greatest Overweight (x) 6 | 2 . 6 Average Overweight (x) . | . . . Largest Inventory Capacity 15 | 8 15 15 Average Capacity 14 | 5 14 15 Most Carried 5 | 5 5 5 Average Carried 3 | 3 3 3 Final Capacity 15 | 8 15 15 Final Carried 3 | 3 3 3 Class Distribution -------------------- 100% | Mutant Dominant Class ---------------- Mutant | -10/Materials Mutant | -10/Mines Resources | -11 -10 -10 ----------- Run | Scr Mat Min Matter Collected 623 | 251 278 94 Remotely . | . . . Salvage Created 493 | . 399 94 Parts 38 | . 31 7 Haulers Intercepted . | . . . Recyclers Shooed . | . . . Parts Field Recycled . | . . . Retrieved Matter . | . . . Parts Self-Destructed . | . . . Prevented . | . . . Kills | -11 -10 -10 ------- Run | Scr Mat Min Combat Hostiles Destroyed 14 | . 12 2 Guns 14 | . 12 2 Classes Destroyed 3 | . 3 . Watcher 3 | . 3 . Swarmer 6 | . 6 . Grunt 8 | . 6 2 Best Kill Streak 3 | . 3 2 Combat Bots Only 3 | . 3 2 Max Kills in Single Turn 1 | . 1 1 Gunslinging . | . . . Exploded . | . . . Melee . | . . . Uniques/NPCs Destroyed . | . . . Combat | -11 -10 -10 -------- Run | Scr Mat Min Damage Taken 1327 | . 673 654 Core 260 | . 89 171 Absorbed by Shields . | . . . Core Remaining (%) 100 | 100 . . Volleys Fired 62 | . 45 17 Largest 2 | . 2 2 Hottest 40 | . 40 40 Shots Fired 112 | . 90 22 Gun 112 | . 90 22 Cannon . | . . . Launcher . | . . . Special . | . . . Kinetic 112 | . 90 22 Thermal . | . . . Explosive . | . . . Electromagnetic . | . . . Robot Hit Streak 10 | . 10 6 Robot Miss Streak 6 | . 6 1 Penetration Max . | . . . Secondary Targets 2 | . 2 . Max Gunslinging Chain 1 | . 1 . Shots Hit Robots 74 | . 57 17 Core Hits 32 | . 22 10 Critical Kills 1 | . 1 . Critical Parts Destroyed 1 | . 1 . Critical Strikes 2 | . 2 . Destroy 2 | . 2 . Melee Attacks . | . . . Impact . | . . . Slashing . | . . . Piercing . | . . . Sneak Attacks . | . . . Combat Hostiles . | . . . Follow-up Attacks . | . . . Damage Inflicted 899 | . 730 169 Guns 878 | . 730 148 Cannons . | . . . Explosions . | . . . Melee . | . . . Ramming 21 | . . 21 Kinetic 878 | . 730 148 Thermal . | . . . Explosive . | . . . Electromagnetic . | . . . Impact . | . . . Slashing . | . . . Piercing . | . . . Highest Corruption . | . . . Average Corruption . | . . . Corruption Purged . | . . . Corruption Blocked . | . . . Overload Shots . | . . . Overflow Damage . | . . . Projectiles . | . . . Explosions . | . . . Melee . | . . . Knockbacks . | . . . Impact . | . . . Kinetic . | . . . Secondary . | . . . Self-Inflicted Damage . | . . . Shots . | . . . Rammed . | . . . Targets Rammed 15 | . . 15 Kicked 15 | . . 15 Crushed . | . . . Highest Temperature 48 | . 20 48 Average Temperature 12 | . 6 18 Received Heat Transfer 603 | . 213 390 Siege Activations . | . . . Robots Corrupted . | . . . Combat Hostiles . | . . . Parts Fried . | . . . Impact Corruptions . | . . . Robots Melted . | . . . Combat Hostiles . | . . . Parts Melted . | . . . Heat Transferred . | . . . Parts Sabotaged . | . . . Parts Stolen . | . . . Parts Stripped . | . . . Power Chain Reactions . | . . . Missiles Intercepted . | . . . Alert | -11 -10 -10 ------- Run | Scr Mat Min Peak Influence 129 | . 129 72 Initial 49 | . . 49 Average 49 | . 52 55 Maximum Alert Level . | . . . Low Security (%) 100 | 100 100 100 Level 1 . | . . . Level 2 . | . . . Level 3 . | . . . Level 4 . | . . . Level 5 . | . . . High Security . | . . . Max Security . | . . . Squads Dispatched 2 | . 2 . Investigation . | . . . Extermination . | . . . Reinforcement 2 | . 2 . Assault . | . . . Garrison . | . . . Intercept . | . . . Searches Triggered . | . . . Construction Impeded . | . . . Haulers Reinforced . | . . . Active Scanning Responses . | . . . Cargo Convoy Interrupts . | . . . Stealth | -11 -10 -10 --------- Run | Scr Mat Min Distress Signals . | . . . Communications Jammed . | . . . Distress Signals . | . . . Times Spotted 26 | . 22 4 Peak Tracking Total 4 | . 4 2 Tactical Retreats 2 | . 2 . Traps | -11 -10 -10 ------- Run | Scr Mat Min Traps Triggered . | . . . Indirectly . | . . . Trap Hack Attempts . | . . . Triggered . | . . . Disarmed . | . . . Reprogrammed . | . . . Reused . | . . . Traps Extracted . | . . . Installed . | . . . Triggered . | . . . Machines | -11 -10 -10 ---------- Run | Scr Mat Min Machines Disabled . | . . . Max in Single Turn . | . . . Machines Sabotaged . | . . . Garrisons Compromised . | . . . Overloaded Fab Kills . | . . . Hacking | -11 -10 -10 --------- Run | Scr Mat Min Machines Accessed 6 | . 5 1 Terminals 4 | . 3 1 Fabricators . | . . . Repair Stations . | . . . Recycling Units 2 | . 2 . Scanalyzers . | . . . Garrison Access . | . . . Total Hacks 18 | . 14 4 Successful 9 | . 7 2 Failed 9 | . 7 2 Catastrophic 2 | . 2 . Database Lockouts . | . . . Manual 14 | . 11 3 Terminals 11 | . 7 4 Fabricators . | . . . Repair Stations . | . . . Recycling Units 7 | . 7 . Scanalyzers . | . . . Garrison Access . | . . . Terminal Hacks 3 | . 1 2 Record 1 | . . 1 Branch Access Points 2 | . 1 1 Fabricator Hacks . | . . . Repair Station Hacks . | . . . Recycling Unit Hacks 2 | . 2 . Report Inventory 2 | . 2 . Scanalyzer . | . . . Garrison Access Hacks . | . . . Unauthorized Hacks 4 | . 4 . Terminals . | . . . Fabricators . | . . . Repair Stations . | . . . Recycling Units 4 | . 4 . Reject 2 | . 2 . Mask 2 | . 2 . Scanalyzers . | . . . Garrison Access . | . . . Data Cores Recovered . | . . . Used . | . . . Hacking Detections 5 | . 4 1 Full Trace Events 2 | . 1 1 Feedback Events . | . . . Feedback Blocked . | . . . Robot Schematics Acquired . | . . . Robots Built . | . . . Authchips . | . . . Time . | . . . Total Robot Build Rating . | . . . Part Schematics Acquired . | . . . Parts Built . | . . . Authchips . | . . . Time . | . . . Total Part Build Rating . | . . . Parts Repaired . | . . . Time . | . . . Parts Recycled . | . . . Recycled Matter . | . . . Retrieved Matter . | . . . Retrieved Components . | . . . Parts Scanalyzed . | . . . Part Schematics Acquired . | . . . Parts Damaged . | . . . Bothacking | -11 -10 -10 ------------ Run | Scr Mat Min Used RIF Installer . | . . . Robots Hacked . | . . . Non-combat . | . . . Combat . | . . . Robot Hacks Applied . | . . . Relay Couplers Released . | . . . Fabnet Peak Effective % . | . . . Robots Rewired . | . . . Allies Hacked . | . . . Hacks Repelled . | . . . Allies | -11 -10 -10 -------- Run | Scr Mat Min Total Allies . | . . . Largest Group . | . . . Highest-Rated Group . | . . . Highest-Rated Ally . | . . . Total Orders . | . . . Ally Attacks . | . . . Total Damage . | . . . Kills . | . . . Allies Corrupted . | . . . Allies Melted . | . . . Intel | -11 -10 -10 ------- Run | Scr Mat Min Robot Analysis Total . | . . . Derelict Logs Recovered . | . . . Drone Launches . | . . . Drone Recoveries . | . . . Exploration | -11 -10 -10 ------------- Run | Scr Mat Min Turns Passed 1340 | 94 988 258 Spaces Moved 636 | 62 485 89 Core 40 | 36 . 4 Treads 539 | 26 485 28 Legs 57 | . . 57 Wheels . | . . . Hover . | . . . Flight . | . . . Fastest Speed 50 | 50 160 160 Average Speed 161 | 131 160 187 Slowest Speed 350 | 160 160 350 Overloaded Moves . | . . . Propulsion Burnouts . | . . . Robots Hopped . | . . . Cave-ins Triggered . | . . . Exploration Rate (%) 30 | 4 73 14 Regions Visited 2 Branch Regions 1 Pre-discovered Areas . | . . . Known Exits Taken 1 | . 1 . Unknown Exits Taken 1 | 1 . . Scrap Searched . | . . . Spaces Dug . | . . . Terrain Destroyed . | . . . Melee . | . . . Projectile . | . . . AOE . | . . . Terrain Rammed . | . . . Walls Destroyed . | . . . Machines Disabled . | . . . Actions | -11 -10 -10 --------- Run | Scr Mat Min Total 828 | 74 609 145 Wait 89 | . 71 18 Move 634 | 61 484 89 Hop . | . . . Pick Up 14 | 7 4 3 Fast Attach 2 | 2 . . Attach 11 | 4 4 3 Detach . | . . . Swap . | . . . Drop 1 | . 1 . Fire 62 | . 45 17 Melee . | . . . Ram . | . . . Kick 15 | . . 15 Crush . | . . . Escape Stasis . | . . . Rewire . | . . . Trap . | . . . Miscellaneous . | . . . Route ------- -11/Scrapyard -10/Materials (discovered 5 exits: [*Mat x3] / *Min x2) -10/Mines History --------- Turn | Location | Event 8 | -11/Scrapyard | Discovered new exit (range 16) 95 | -11/Scrapyard | Entered Materials 147 | -10/Materials | Discovered new exit (range 12) 226 | -10/Materials | Discovered new exit (range 5) 300 | -10/Materials | Build established: Mutant 493 | -10/Materials | Discovered new exit (range 3) 589 | -10/Materials | Identified exit to Mines 752 | -10/Materials | Discovered new exit (range 16) 1083 | -10/Materials | Entered Mines 1192 | -10/Mines | Lost 5 parts (1p2n1u1w) 1313 | -10/Mines | Core integrity fell below 50% 1334 | -10/Mines | Core integrity fell below 20% 1341 | -10/Mines | Destroyed by G-47 Trooper with Particle Gun Last Messages --------------- 01153_ Assault Rifle destroyed. 01157_ Lgt. Ion Engine destroyed. 01157_ G-34 Mercenary destroyed. 01161_ Sensor Array destroyed. 01173_ G-47 Trooper destroyed. 01175_ Acquired 56 matter. 01182_ Acquired Aluminum Leg. 01194_ Acquired 38 matter. 01198_ Acquired Aluminum Leg. 01302_ Lgt. Assault Rifle destroyed. 01310_ Kicked G-47 Trooper. 01318_ Kicked G-47 Trooper out of the way. 01320_ Kicked G-34 Mercenary. 01324_ Aluminum Leg destroyed. 01325_ Kicked G-34 Mercenary. 01328_ Kicked G-34 Mercenary out of the way. 01333_ Kicked G-34 Mercenary. 01334_ Lgt. Ion Engine destroyed. 01336_ Kicked G-34 Mercenary out of the way. 01338_ Kicked G-34 Mercenary. Map ----- +----------------------------------------------------+ | | | | | | | | | | | | | | | | | | | | | | | ?????????????????????????????????????????????????? | | ?????????????????????????????????????????????????? | | ??????????####???????????????????????????????????? | | ?????????## ##????????????############??????????? | | ?????????# ##???????????# #??????????? | | ?????????# ####????????# #??????????? | | ?????????# ##???????# """ #??????????? | | ?????????## #???????# """ #??????????? | | ??????????### ##??????# """ #??????????? | | ????????????## #??????# ##?????????? | | ?????????????## #??##### T#?????????? | | ??????????????## #### ### ##########?????????? | | ???????????????# ## ## #??????????????????? | | ???????????????# k ## #??????????????????? | | ???????????????## g@ g #??????????????????? | | ????????????????## ######??????????????????? | | ?????????????????### ## #???????????????????????? | | ???????????????##### ## #???????????????????????? | | ??????????????## ## #???????????????????????? | | ??????????????# ####???????????????????????? | | ??????????????# #?????????????????????????? | | ??????????????# ### ##?????????????????????????? | | ?????????????# ##?###??????????????????????????? | | ?????????????# ????????????????????????????????? | | ?????????????# ????????????????????????????????? | | ?????????????# ????????????????????????????????? | | ?????????????# ?????????????????????????????????? | | ?????????????# ?????????????????????????????????? | | ?????????????# ?????????????????????????????????? | | ?????????????# ?????????????????????????????????? | | ????????????? ??????????????????????????????????? | | ????????????? ??????????????????????????????????? | | ????????????# ??????????????????????????????????? | | ???????????? ??????????????????????????????????? | | ????????????? ???????????????????????????????????? | | ?????????????????????????????????????????????????? | | ?????????????????????????????????????????????????? | | ?????????????????????????????????????????????????? | | ?????????????????????????????????????????????????? | +----------------------------------------------------+ Best States ------------- Heat Dissipation 25 Energy Generation 10 Energy Capacity 250 Matter Stores 300 Matter Capacity 300 Sight Range 16 Robot Scan Range 14 Terrain Scan Density 10 Evasion (%) 50 Recoil Reduction 2 Item Schematics ----------------- None Robot Schematics ------------------ None Fabricated ------------ Nothing Alien Tech Used ----------------- None Achievements -------------- None Challenges ------------ None Game ------ Seed SalvagePointKatana Manual? 0 Play Time 00:10:52 Cumulative 37.6 hours Start 2022.12.12 @ 19:08:10 End 2022.12.12 @ 19:17:38 Sessions 1 Manual Loads 0 Difficulty Rogue Special Mode None Game No. 47 Rogue 47 Adventurer 0 Explorer 0 Win Type - Total 0 Types 0/0/0/0/0/0/0/0/0 Lore% 18 Gallery% 34 Achievement% 30 Wizard Run 0 Options --------- ASCII 0 Keyboard 0 Movement Mouse Keybinds 0 Fullscreen 2 Font 24/Smallcaps Map View 76x50 Tactical HUD 1 Map Filters NONE Filters NONE Steam 1 RUN: c2acc0ba-b0bd-4ee4-8a79-21333e5c092e